[Event "Late-Titled-Tuesday-Blitz-September-26-2023"]
[Site "Chess.com"]
[Date "2023.09.26"]
[Round "5"]
[White "Zampronha1971"]
[Black "koncheto"]
[Result "0-1"]
[WhiteElo "2281"]
[BlackElo "2526"]
[TimeControl "180+1"]
[EndTime "14:55:38 PDT"]
[Termination "koncheto won by resignation"]

1. e4 {[%clk 0:03:00.9]} 1... e5 {[%clk 0:02:58]} 2. Nf3 {[%clk 0:03:01.3]} 2...
Nf6 {[%clk 0:02:58.2]} 3. d4 {[%clk 0:03:02.1]} 3... Nxe4 {[%clk 0:02:55.8]} 4.
Bd3 {[%clk 0:03:00.6]} 4... d5 {[%clk 0:02:54.2]} 5. Nxe5 {[%clk 0:03:01]} 5...
Bd6 {[%clk 0:02:53.9]} 6. O-O {[%clk 0:03:00.2]} 6... O-O {[%clk 0:02:53.4]} 7.
c4 {[%clk 0:03:00]} 7... c6 {[%clk 0:02:49.7]} 8. Nc3 {[%clk 0:02:59.3]} 8...
Nxc3 {[%clk 0:02:47]} 9. bxc3 {[%clk 0:03:00.2]} 9... Nd7 {[%clk 0:02:43.9]} 10.
Nxd7 {[%clk 0:02:57.4]} 10... Bxd7 {[%clk 0:02:43]} 11. cxd5 {[%clk 0:02:58]}
11... cxd5 {[%clk 0:02:43.1]} 12. Qh5 {[%clk 0:02:54.2]} 12... f5 {[%clk
0:02:42.2]} 13. Qf3 {[%clk 0:02:52.2]} 13... Be6 {[%clk 0:02:24.1]} 14. Bf4
{[%clk 0:02:52.5]} 14... Rc8 {[%clk 0:02:21]} 15. Rac1 {[%clk 0:02:46.5]} 15...
Qc7 {[%clk 0:02:03.6]} 16. Bxd6 {[%clk 0:02:45.1]} 16... Qxd6 {[%clk 0:02:04.5]}
17. Rfe1 {[%clk 0:02:43]} 17... g6 {[%clk 0:01:59.9]} 18. Qe3 {[%clk 0:02:38.9]}
18... Rfe8 {[%clk 0:01:52.2]} 19. Qe5 {[%clk 0:02:23.6]} 19... Qa3 {[%clk
0:01:24.7]} 20. Bb5 {[%clk 0:02:10.2]} 20... Re7 {[%clk 0:00:34]} 21. Bd7 {[%clk
0:01:57.3]} 21... Rce8 {[%clk 0:00:05.2]} 22. Bxe6+ {[%clk 0:01:53]} 22... Rxe6
{[%clk 0:00:04.9]} 23. Qxd5 {[%clk 0:01:53.2]} 23... Kf7 {[%clk 0:00:04.3]} 24.
Rb1 {[%clk 0:01:04.9]} 24... Kf6 {[%clk 0:00:03.6]} 25. Rxe6+ {[%clk 0:01:01.4]}
25... Rxe6 {[%clk 0:00:04.5]} 26. Qb3 {[%clk 0:00:50.4]} 26... Qe7 {[%clk
0:00:02.8]} 27. Qd1 {[%clk 0:00:39.4]} 27... b6 {[%clk 0:00:02.7]} 28. g3 {[%clk
0:00:37.5]} 28... Re2 {[%clk 0:00:02.9]} 29. d5 {[%clk 0:00:28.6]} 29... Rxa2
{[%clk 0:00:02.9]} 30. Qd4+ {[%clk 0:00:24.7]} 30... Qe5 {[%clk 0:00:02.9]} 31.
Qxe5+ {[%clk 0:00:17.8]} 31... Kxe5 {[%clk 0:00:03.7]} 32. c4 {[%clk 0:00:18.7]}
32... Kd6 {[%clk 0:00:03.9]} 33. Re1 {[%clk 0:00:18.8]} 33... Rc2 {[%clk
0:00:04.1]} 34. Re6+ {[%clk 0:00:19.3]} 34... Kd7 {[%clk 0:00:04.6]} 35. Rc6
{[%clk 0:00:19.6]} 35... a5 {[%clk 0:00:03.6]} 36. Rxb6 {[%clk 0:00:19.1]} 36...
Rxc4 {[%clk 0:00:03.9]} 37. Ra6 {[%clk 0:00:19.3]} 37... a4 {[%clk 0:00:04]} 38.
Ra7+ {[%clk 0:00:18.2]} 38... Kd6 {[%clk 0:00:04.5]} 39. Rxh7 {[%clk 0:00:18.8]}
39... Kxd5 {[%clk 0:00:03.7]} 40. Ra7 {[%clk 0:00:19.4]} 40... Kc5 {[%clk
0:00:03.6]} 41. h4 {[%clk 0:00:19.5]} 41... Kb4 {[%clk 0:00:03.2]} 42. Rg7
{[%clk 0:00:18.7]} 42... Rc6 {[%clk 0:00:03.1]} 43. Ra7 {[%clk 0:00:17.7]} 43...
Rc5 {[%clk 0:00:01.9]} 44. Ra6 {[%clk 0:00:15.3]} 44... Ra5 {[%clk 0:00:01.9]}
45. Rb6+ {[%clk 0:00:15.6]} 45... Kc5 {[%clk 0:00:02.2]} 46. Rb1 {[%clk
0:00:13.5]} 46... a3 {[%clk 0:00:02.7]} 47. Kg2 {[%clk 0:00:13.1]} 47... a2
{[%clk 0:00:03.2]} 48. Ra1 {[%clk 0:00:13]} 48... Kb4 {[%clk 0:00:03.8]} 49. Kf3
{[%clk 0:00:12.5]} 49... Kc3 {[%clk 0:00:04.3]} 50. Kf4 {[%clk 0:00:12.8]} 50...
Kb2 {[%clk 0:00:04.7]} 51. Rd1 {[%clk 0:00:11.8]} 51... a1=Q {[%clk 0:00:04.8]}
52. Rxa1 {[%clk 0:00:11.9]} 52... Kxa1 {[%clk 0:00:05.7]} 53. h5 {[%clk
0:00:11.9]} 53... gxh5 {[%clk 0:00:05]} 54. Kg5 {[%clk 0:00:11.6]} 54... Kb2
{[%clk 0:00:04.5]} 55. Kxh5 {[%clk 0:00:11.8]} 55... f4+ {[%clk 0:00:04.6]} 56.
Kg4 {[%clk 0:00:10.6]} 56... fxg3 {[%clk 0:00:04.9]} 57. Kxg3 {[%clk 0:00:09.8]}
57... Kc3 {[%clk 0:00:05.8]} 58. f4 {[%clk 0:00:10.3]} 58... Kd4 {[%clk
0:00:06.5]} 59. Kg4 {[%clk 0:00:11.2]} 59... Ke4 {[%clk 0:00:06.9]} 0-1

[Event "Late-Titled-Tuesday-Blitz-September-26-2023"]
[Site "Chess.com"]
[Date "2023.09.26"]
[Round "5"]
[White "TheMagician"]
[Black "Rital44"]
[Result "0-1"]
[WhiteElo "2255"]
[BlackElo "2519"]
[TimeControl "180+1"]
[EndTime "14:55:39 PDT"]
[Termination "Rital44 won on time"]

1. c4 {[%clk 0:02:48.9]} 1... g6 {[%clk 0:02:59.4]} 2. g3 {[%clk 0:02:48.1]}
2... Bg7 {[%clk 0:02:59.8]} 3. Bg2 {[%clk 0:02:48.6]} 3... d6 {[%clk 0:03:00.3]}
4. Nf3 {[%clk 0:02:48.7]} 4... Nf6 {[%clk 0:03:00.8]} 5. O-O {[%clk 0:02:48.8]}
5... O-O {[%clk 0:03:01.6]} 6. Nc3 {[%clk 0:02:47.7]} 6... Nbd7 {[%clk
0:03:01.3]} 7. d4 {[%clk 0:02:47.8]} 7... e5 {[%clk 0:03:00.8]} 8. dxe5 {[%clk
0:02:47.8]} 8... dxe5 {[%clk 0:03:01.7]} 9. Ng5 {[%clk 0:02:43.5]} 9... h6
{[%clk 0:03:00.9]} 10. Nge4 {[%clk 0:02:44]} 10... Qe7 {[%clk 0:02:53.1]} 11.
Nxf6+ {[%clk 0:02:42.1]} 11... Nxf6 {[%clk 0:02:53.2]} 12. Nd5 {[%clk
0:02:42.1]} 12... Nxd5 {[%clk 0:02:53.3]} 13. cxd5 {[%clk 0:02:42.4]} 13... Rd8
{[%clk 0:02:53.2]} 14. e4 {[%clk 0:02:41.9]} 14... f5 {[%clk 0:02:49.2]} 15.
exf5 {[%clk 0:02:37.5]} 15... Bxf5 {[%clk 0:02:41.7]} 16. Qb3 {[%clk 0:02:37.4]}
16... Qf7 {[%clk 0:02:10.1]} 17. h3 {[%clk 0:02:14.8]} 17... Rab8 {[%clk
0:02:06.7]} 18. g4 {[%clk 0:02:14]} 18... Bd7 {[%clk 0:02:01.7]} 19. Be4 {[%clk
0:02:09.9]} 19... Kh8 {[%clk 0:01:59.7]} 20. Qc2 {[%clk 0:02:08.1]} 20... Be8
{[%clk 0:01:59.1]} 21. Be3 {[%clk 0:01:55.2]} 21... b6 {[%clk 0:01:48.4]} 22.
Rac1 {[%clk 0:01:41.2]} 22... Rbc8 {[%clk 0:01:48.9]} 23. Rfd1 {[%clk
0:01:35.6]} 23... h5 {[%clk 0:01:47.6]} 24. gxh5 {[%clk 0:01:24.1]} 24... gxh5
{[%clk 0:01:48.5]} 25. Bf5 {[%clk 0:01:21.1]} 25... Bd7 {[%clk 0:01:43.8]} 26.
Bxd7 {[%clk 0:01:14.4]} 26... Rxd7 {[%clk 0:01:40.8]} 27. Qe4 {[%clk 0:01:10.9]}
27... Rcd8 {[%clk 0:01:36]} 28. Rc6 {[%clk 0:01:07.9]} 28... Rxd5 {[%clk
0:01:30]} 29. Rxd5 {[%clk 0:01:06.2]} 29... Rxd5 {[%clk 0:01:28.9]} 30. Kg2
{[%clk 0:00:59.6]} 30... Rd6 {[%clk 0:01:23.7]} 31. Rc2 {[%clk 0:00:40.7]} 31...
Rg6+ {[%clk 0:01:21.7]} 32. Kh2 {[%clk 0:00:36.8]} 32... Kg8 {[%clk 0:00:56.8]}
33. b4 {[%clk 0:00:35.2]} 33... Bf8 {[%clk 0:00:54.1]} 34. Rxc7 {[%clk
0:00:31.1]} 34... Qxc7 {[%clk 0:00:24.7]} 35. Qxg6+ {[%clk 0:00:28.1]} 35... Bg7
{[%clk 0:00:25.2]} 36. Qe8+ {[%clk 0:00:22.1]} 36... Bf8 {[%clk 0:00:24.7]} 37.
Qxh5 {[%clk 0:00:21.1]} 37... e4+ {[%clk 0:00:20.2]} 38. Kg2 {[%clk 0:00:21.3]}
38... Qg7+ {[%clk 0:00:20.1]} 39. Qg4 {[%clk 0:00:21.5]} 39... Bxb4 {[%clk
0:00:19.6]} 40. Qxg7+ {[%clk 0:00:19.8]} 40... Kxg7 {[%clk 0:00:20.5]} 41. Kg3
{[%clk 0:00:20.3]} 41... Bd6+ {[%clk 0:00:18.8]} 42. Kg4 {[%clk 0:00:20.6]}
42... Kf6 {[%clk 0:00:19.2]} 43. Bg5+ {[%clk 0:00:18.2]} 43... Kg6 {[%clk
0:00:16.9]} 44. Bf4 {[%clk 0:00:16.3]} 44... Bc5 {[%clk 0:00:17.5]} 45. Be3
{[%clk 0:00:15]} 45... Bd6 {[%clk 0:00:12.9]} 46. h4 {[%clk 0:00:14.3]} 46...
Bc7 {[%clk 0:00:07.5]} 47. h5+ {[%clk 0:00:14.6]} 47... Kh7 {[%clk 0:00:08.2]}
48. Kf5 {[%clk 0:00:14.4]} 48... a5 {[%clk 0:00:08.7]} 49. Kxe4 {[%clk
0:00:14.7]} 49... b5 {[%clk 0:00:09.4]} 50. Kd5 {[%clk 0:00:14.5]} 50... b4
{[%clk 0:00:08.6]} 51. Kc4 {[%clk 0:00:14.1]} 51... Bd6 {[%clk 0:00:06.8]} 52.
Kb5 {[%clk 0:00:13.6]} 52... Bc7 {[%clk 0:00:05.4]} 53. f4 {[%clk 0:00:08.4]}
53... Kh6 {[%clk 0:00:05.9]} 54. f5+ {[%clk 0:00:04.6]} 54... Kxh5 {[%clk
0:00:06.4]} 0-1

[Event "Late-Titled-Tuesday-Blitz-September-26-2023"]
[Site "Chess.com"]
[Date "2023.09.26"]
[Round "5"]
[White "Likvidator228"]
[Black "DuleMudule"]
[Result "0-1"]
[WhiteElo "2546"]
[BlackElo "2806"]
[TimeControl "180+1"]
[EndTime "14:55:41 PDT"]
[Termination "DuleMudule won by checkmate"]

1. d4 {[%clk 0:02:59.8]} 1... d5 {[%clk 0:03:00]} 2. c4 {[%clk 0:02:57.1]} 2...
Nc6 {[%clk 0:02:59.7]} 3. Nf3 {[%clk 0:02:53.2]} 3... Bg4 {[%clk 0:02:59.4]} 4.
e3 {[%clk 0:02:50.7]} 4... e6 {[%clk 0:02:59.1]} 5. Nc3 {[%clk 0:02:50.3]} 5...
Nf6 {[%clk 0:02:58.5]} 6. Be2 {[%clk 0:02:47.9]} 6... dxc4 {[%clk 0:02:57.7]} 7.
Bxc4 {[%clk 0:02:47.2]} 7... Bd6 {[%clk 0:02:58.3]} 8. h3 {[%clk 0:02:46.5]}
8... Bh5 {[%clk 0:02:57.7]} 9. O-O {[%clk 0:02:46]} 9... O-O {[%clk 0:02:57.8]}
10. Be2 {[%clk 0:02:45]} 10... e5 {[%clk 0:02:53.4]} 11. d5 {[%clk 0:02:36.4]}
11... Ne7 {[%clk 0:02:52.3]} 12. e4 {[%clk 0:02:37]} 12... Bxf3 {[%clk
0:02:48.2]} 13. Bxf3 {[%clk 0:02:36.8]} 13... a6 {[%clk 0:02:48.2]} 14. Be3
{[%clk 0:02:31.1]} 14... Ng6 {[%clk 0:02:46.8]} 15. Rc1 {[%clk 0:02:27.5]} 15...
Nf4 {[%clk 0:02:43.6]} 16. Kh2 {[%clk 0:02:22.9]} 16... Qd7 {[%clk 0:02:33.7]}
17. Bg4 {[%clk 0:02:21.1]} 17... Nxg4+ {[%clk 0:02:32.3]} 18. Qxg4 {[%clk
0:02:20.6]} 18... Qe7 {[%clk 0:02:22.3]} 19. g3 {[%clk 0:02:12.7]} 19... Ng6
{[%clk 0:02:20.7]} 20. h4 {[%clk 0:02:06.2]} 20... Rfe8 {[%clk 0:02:11.5]} 21.
h5 {[%clk 0:01:57.4]} 21... Nf8 {[%clk 0:02:11.5]} 22. Kg2 {[%clk 0:01:56.5]}
22... Nd7 {[%clk 0:02:09.5]} 23. h6 {[%clk 0:01:46.8]} 23... g6 {[%clk
0:02:09.2]} 24. f3 {[%clk 0:01:31.5]} 24... Rf8 {[%clk 0:02:06.2]} 25. Qg5
{[%clk 0:01:19]} 25... f6 {[%clk 0:02:05.1]} 26. Qh4 {[%clk 0:01:19]} 26... Qf7
{[%clk 0:02:00.5]} 27. g4 {[%clk 0:01:16.6]} 27... g5 {[%clk 0:01:54]} 28. Qf2
{[%clk 0:01:13.8]} 28... Rfc8 {[%clk 0:01:49.3]} 29. Ne2 {[%clk 0:01:13.4]}
29... Nf8 {[%clk 0:01:37.1]} 30. Ng3 {[%clk 0:01:12.7]} 30... Ng6 {[%clk
0:01:37.6]} 31. Nf5 {[%clk 0:01:13.1]} 31... Qd7 {[%clk 0:01:37.7]} 32. Qe2
{[%clk 0:01:03]} 32... Qb5 {[%clk 0:01:31.3]} 33. Kf2 {[%clk 0:00:59.6]} 33...
Bf8 {[%clk 0:01:14.5]} 34. b3 {[%clk 0:00:56.2]} 34... Qxe2+ {[%clk 0:01:05.6]}
35. Kxe2 {[%clk 0:00:56.2]} 35... a5 {[%clk 0:01:05.8]} 36. a4 {[%clk
0:00:54.2]} 36... b5 {[%clk 0:00:58]} 37. axb5 {[%clk 0:00:53.4]} 37... Rab8
{[%clk 0:00:58.4]} 38. Rc6 {[%clk 0:00:44.5]} 38... Rxb5 {[%clk 0:00:57.2]} 39.
Rxf6 {[%clk 0:00:20]} 39... Rxb3 {[%clk 0:00:56.5]} 40. Bxg5 {[%clk 0:00:20.6]}
40... Rb2+ {[%clk 0:00:55.4]} 41. Kd3 {[%clk 0:00:19.3]} 41... Rcb8 {[%clk
0:00:53.5]} 42. Rc1 {[%clk 0:00:19]} 42... a4 {[%clk 0:00:49.2]} 43. Ra6 {[%clk
0:00:18.2]} 43... a3 {[%clk 0:00:48.4]} 44. d6 {[%clk 0:00:15.9]} 44... cxd6
{[%clk 0:00:47.7]} 45. Rxa3 {[%clk 0:00:15.1]} 45... d5 {[%clk 0:00:48.2]} 46.
Ra7 {[%clk 0:00:11.7]} 46... d4 {[%clk 0:00:48.7]} 47. Ne7+ {[%clk 0:00:10]}
47... Bxe7 {[%clk 0:00:46]} 48. Bxe7 {[%clk 0:00:10.9]} 48... Nf4+ {[%clk
0:00:46.4]} 49. Kc4 {[%clk 0:00:10.7]} 49... Rc8+ {[%clk 0:00:46.1]} 50. Bc5
{[%clk 0:00:11.1]} 50... d3 {[%clk 0:00:39]} 51. Rg7+ {[%clk 0:00:04.5]} 51...
Kh8 {[%clk 0:00:38.6]} 52. Ra1 {[%clk 0:00:04.3]} 52... Ne6 {[%clk 0:00:33.6]}
53. Re7 {[%clk 0:00:02.3]} 53... Nxc5 {[%clk 0:00:29.4]} 54. Raa7 {[%clk
0:00:01.8]} 54... Ne6+ {[%clk 0:00:27.8]} 55. Kd5 {[%clk 0:00:02.3]} 55... Nf8
{[%clk 0:00:27.7]} 56. Kxe5 {[%clk 0:00:02.2]} 56... Ng6+ {[%clk 0:00:27.9]} 57.
Kf6 {[%clk 0:00:02.3]} 57... Nxe7 {[%clk 0:00:28.1]} 58. Rxe7 {[%clk 0:00:03.2]}
58... Rd8 {[%clk 0:00:27.1]} 59. e5 {[%clk 0:00:02]} 59... d2 {[%clk 0:00:27.2]}
60. e6 {[%clk 0:00:02.4]} 60... d1=Q {[%clk 0:00:27.6]} 61. f4 {[%clk
0:00:02.7]} 61... Qd4+ {[%clk 0:00:27.4]} 62. Kf7 {[%clk 0:00:02.6]} 62... Rbb8
{[%clk 0:00:23.2]} 63. f5 {[%clk 0:00:02.7]} 63... Rf8# {[%clk 0:00:23.1]} 0-1

[Event "Late-Titled-Tuesday-Blitz-September-26-2023"]
[Site "Chess.com"]
[Date "2023.09.26"]
[Round "5"]
[White "AleksanderHnydiuk"]
[Black "Rodalquilar"]
[Result "1-0"]
[WhiteElo "2557"]
[BlackElo "2737"]
[TimeControl "180+1"]
[EndTime "14:55:43 PDT"]
[Termination "AleksanderHnydiuk won on time"]

1. e4 {[%clk 0:03:00.9]} 1... d5 {[%clk 0:03:00.2]} 2. exd5 {[%clk 0:02:59.9]}
2... Qxd5 {[%clk 0:03:01.1]} 3. Nc3 {[%clk 0:02:59.9]} 3... Qa5 {[%clk
0:03:01.3]} 4. d4 {[%clk 0:02:56.5]} 4... Nf6 {[%clk 0:03:01.3]} 5. Nf3 {[%clk
0:02:55.7]} 5... Bf5 {[%clk 0:03:00.9]} 6. Bd2 {[%clk 0:02:50.4]} 6... e6 {[%clk
0:03:00.4]} 7. Bc4 {[%clk 0:02:45.2]} 7... Bb4 {[%clk 0:02:57.1]} 8. Qe2 {[%clk
0:02:25.1]} 8... O-O {[%clk 0:02:52.6]} 9. O-O-O {[%clk 0:02:21.1]} 9... Nc6
{[%clk 0:02:51.1]} 10. Kb1 {[%clk 0:02:08.7]} 10... Rab8 {[%clk 0:02:19.1]} 11.
a3 {[%clk 0:02:04.5]} 11... Bxa3 {[%clk 0:02:19.1]} 12. Nd5 {[%clk 0:01:56.2]}
12... Bb4 {[%clk 0:00:54.9]} 13. Nxf6+ {[%clk 0:01:55.5]} 13... gxf6 {[%clk
0:00:55]} 14. Bh6 {[%clk 0:01:54.5]} 14... Rfe8 {[%clk 0:00:41.6]} 15. Nh4
{[%clk 0:01:48.5]} 15... Bg6 {[%clk 0:00:41.8]} 16. f4 {[%clk 0:01:38.3]} 16...
Qh5 {[%clk 0:00:40]} 17. Qxh5 {[%clk 0:01:35]} 17... Bxh5 {[%clk 0:00:40.5]} 18.
Rd3 {[%clk 0:01:34.8]} 18... Bg6 {[%clk 0:00:36.7]} 19. f5 {[%clk 0:01:17]}
19... exf5 {[%clk 0:00:36.7]} 20. Bf4 {[%clk 0:01:08]} 20... Bd6 {[%clk
0:00:36.9]} 21. Bxd6 {[%clk 0:00:35.2]} 21... cxd6 {[%clk 0:00:37.8]} 22. Rf1
{[%clk 0:00:35]} 22... Rbc8 {[%clk 0:00:23.3]} 23. Bb3 {[%clk 0:00:24.3]} 23...
f4 {[%clk 0:00:18.9]} 24. Rd2 {[%clk 0:00:19.5]} 24... Na5 {[%clk 0:00:16]} 25.
Bd5 {[%clk 0:00:17.3]} 25... Nc4 {[%clk 0:00:14.7]} 26. Bxc4 {[%clk 0:00:16.9]}
26... Rxc4 {[%clk 0:00:14.6]} 27. b3 {[%clk 0:00:16.3]} 27... Rc3 {[%clk
0:00:13]} 28. Kb2 {[%clk 0:00:16.1]} 28... Rec8 {[%clk 0:00:12.7]} 29. Nxg6
{[%clk 0:00:15.8]} 29... hxg6 {[%clk 0:00:13.6]} 30. Rxf4 {[%clk 0:00:15.9]}
30... f5 {[%clk 0:00:14.2]} 31. Re2 {[%clk 0:00:11]} 31... Kf8 {[%clk
0:00:14.1]} 32. Rf1 {[%clk 0:00:10]} 32... R3c7 {[%clk 0:00:10.7]} 33. Rfe1
{[%clk 0:00:09.8]} 33... Kg7 {[%clk 0:00:11.1]} 34. c4 {[%clk 0:00:09.9]} 34...
a6 {[%clk 0:00:10.8]} 35. Re7 {[%clk 0:00:06]} 35... Kf6 {[%clk 0:00:11.2]} 36.
Rxc7 {[%clk 0:00:05.4]} 36... Rxc7 {[%clk 0:00:12.1]} 37. d5 {[%clk 0:00:05.8]}
37... Re7 {[%clk 0:00:09.2]} 38. Rxe7 {[%clk 0:00:02.6]} 38... Kxe7 {[%clk
0:00:09.7]} 39. h4 {[%clk 0:00:02.5]} 39... Kf6 {[%clk 0:00:08.6]} 40. Kc3
{[%clk 0:00:02.9]} 40... Ke5 {[%clk 0:00:09.1]} 41. b4 {[%clk 0:00:03]} 41... b6
{[%clk 0:00:08.5]} 42. Kd3 {[%clk 0:00:03]} 42... f4 {[%clk 0:00:08.2]} 43. Kc3
{[%clk 0:00:02.9]} 43... Ke4 {[%clk 0:00:07.9]} 44. c5 {[%clk 0:00:03]} 44...
Kxd5 {[%clk 0:00:08.4]} 45. cxb6 {[%clk 0:00:02.9]} 45... Kc6 {[%clk 0:00:09]}
46. Kd4 {[%clk 0:00:03.1]} 46... Kxb6 {[%clk 0:00:09.6]} 47. Ke4 {[%clk
0:00:01]} 47... Kb5 {[%clk 0:00:10.1]} 48. Kxf4 {[%clk 0:00:01.4]} 48... Kxb4
{[%clk 0:00:10.7]} 49. g4 {[%clk 0:00:02]} 49... d5 {[%clk 0:00:06]} 50. h5
{[%clk 0:00:02.9]} 50... gxh5 {[%clk 0:00:05]} 51. gxh5 {[%clk 0:00:03.3]} 51...
d4 {[%clk 0:00:05.6]} 52. h6 {[%clk 0:00:03.3]} 52... d3 {[%clk 0:00:06.2]} 53.
Ke3 {[%clk 0:00:03.7]} 53... Kc3 {[%clk 0:00:06.3]} 54. h7 {[%clk 0:00:04.2]}
54... d2 {[%clk 0:00:06.8]} 55. h8=Q+ {[%clk 0:00:04.6]} 55... Kc2 {[%clk
0:00:07.4]} 56. Qc8+ {[%clk 0:00:04.6]} 56... Kd1 {[%clk 0:00:07.9]} 57. Qd7
{[%clk 0:00:04.7]} 1-0

[Event "Late-Titled-Tuesday-Blitz-September-26-2023"]
[Site "Chess.com"]
[Date "2023.09.26"]
[Round "5"]
[White "Nekoo04"]
[Black "Eloist"]
[Result "1/2-1/2"]
[WhiteElo "2318"]
[BlackElo "2482"]
[TimeControl "180+1"]
[EndTime "14:55:44 PDT"]
[Termination "Game drawn - insufficient material"]

1. d4 {[%clk 0:03:00.9]} 1... e6 {[%clk 0:03:00.2]} 2. c4 {[%clk 0:03:00.1]}
2... Nf6 {[%clk 0:03:00.4]} 3. Nf3 {[%clk 0:02:59.6]} 3... b6 {[%clk 0:03:00.3]}
4. g3 {[%clk 0:02:57.6]} 4... Bb7 {[%clk 0:03:00.6]} 5. Bg2 {[%clk 0:02:56.6]}
5... Be7 {[%clk 0:03:00.9]} 6. O-O {[%clk 0:02:55.1]} 6... O-O {[%clk
0:03:01.4]} 7. Nc3 {[%clk 0:02:55.5]} 7... Ne4 {[%clk 0:03:00.6]} 8. Bd2 {[%clk
0:02:40.1]} 8... f5 {[%clk 0:03:00.3]} 9. Re1 {[%clk 0:02:31.6]} 9... Bf6 {[%clk
0:02:58.2]} 10. Qc2 {[%clk 0:02:27.4]} 10... Nxc3 {[%clk 0:02:55.5]} 11. Bxc3
{[%clk 0:02:24]} 11... Be4 {[%clk 0:02:55]} 12. Qd1 {[%clk 0:02:15.6]} 12... d6
{[%clk 0:02:54.6]} 13. d5 {[%clk 0:02:05.7]} 13... Bxc3 {[%clk 0:02:53]} 14.
bxc3 {[%clk 0:02:06.6]} 14... e5 {[%clk 0:02:40.5]} 15. h4 {[%clk 0:01:19.5]}
15... h6 {[%clk 0:02:32.3]} 16. Nxe5 {[%clk 0:01:00.4]} 16... Bxg2 {[%clk
0:02:23.5]} 17. Ng6 {[%clk 0:00:59.1]} 17... Rf6 {[%clk 0:02:14.7]} 18. Nf4
{[%clk 0:00:58.1]} 18... Be4 {[%clk 0:02:10.5]} 19. f3 {[%clk 0:00:57.7]} 19...
Na6 {[%clk 0:01:50.9]} 20. Qd4 {[%clk 0:00:21.5]} 20... Nc5 {[%clk 0:01:43.4]}
21. Rf1 {[%clk 0:00:16.2]} 21... Qe7 {[%clk 0:01:38]} 22. fxe4 {[%clk
0:00:08.4]} 22... Qxe4 {[%clk 0:01:36.6]} 23. Nh5 {[%clk 0:00:07.6]} 23... Rg6
{[%clk 0:01:33.6]} 24. Qxe4 {[%clk 0:00:05.6]} 24... Nxe4 {[%clk 0:01:31.4]} 25.
Rf3 {[%clk 0:00:04.9]} 25... Rf8 {[%clk 0:01:23.4]} 26. Kh2 {[%clk 0:00:02.6]}
26... Nd2 {[%clk 0:01:15.7]} 27. Rd3 {[%clk 0:00:01.9]} 27... Nxc4 {[%clk
0:01:13.7]} 28. Rf1 {[%clk 0:00:02.1]} 28... Ne5 {[%clk 0:01:09.5]} 29. Rd4
{[%clk 0:00:01.3]} 29... Ng4+ {[%clk 0:01:07.9]} 30. Kh3 {[%clk 0:00:01.9]}
30... Re8 {[%clk 0:01:00.5]} 31. e4 {[%clk 0:00:01.1]} 31... Rxe4 {[%clk
0:00:59.3]} 32. Rxe4 {[%clk 0:00:01.3]} 32... fxe4 {[%clk 0:00:58.9]} 33. Nf4
{[%clk 0:00:01.9]} 33... Ne3 {[%clk 0:00:37.6]} 34. Re1 {[%clk 0:00:02.1]} 34...
Rf6 {[%clk 0:00:35.5]} 35. Rxe3 {[%clk 0:00:02.1]} 35... g5 {[%clk 0:00:36.2]}
36. hxg5 {[%clk 0:00:02.1]} 36... hxg5 {[%clk 0:00:37.1]} 37. Ne6 {[%clk
0:00:02.7]} 37... Rf2 {[%clk 0:00:35.8]} 38. Nxg5 {[%clk 0:00:02.6]} 38... Rxa2
{[%clk 0:00:35.9]} 39. Rxe4 {[%clk 0:00:02.7]} 39... a5 {[%clk 0:00:36.2]} 40.
Rc4 {[%clk 0:00:02.5]} 40... a4 {[%clk 0:00:35.6]} 41. Rxc7 {[%clk 0:00:02.5]}
41... Rc2 {[%clk 0:00:35.8]} 42. Ne4 {[%clk 0:00:02.6]} 42... a3 {[%clk
0:00:35.5]} 43. Nxd6 {[%clk 0:00:02.8]} 43... a2 {[%clk 0:00:35.1]} 44. Ra7
{[%clk 0:00:03.1]} 44... Rxc3 {[%clk 0:00:33.3]} 45. Nb5 {[%clk 0:00:02.5]}
45... Rc5 {[%clk 0:00:32.6]} 46. Nc7 {[%clk 0:00:02]} 46... Rxc7 {[%clk
0:00:31.6]} 47. Rxa2 {[%clk 0:00:02]} 47... Rd7 {[%clk 0:00:30.5]} 48. Rd2
{[%clk 0:00:01.7]} 48... Kf7 {[%clk 0:00:29.3]} 49. Kg4 {[%clk 0:00:02.1]} 49...
Ke7 {[%clk 0:00:28.7]} 50. Kf4 {[%clk 0:00:02.7]} 50... Kd6 {[%clk 0:00:29]} 51.
Ke4 {[%clk 0:00:03]} 51... Re7+ {[%clk 0:00:29.2]} 52. Kd4 {[%clk 0:00:03.2]}
52... Rg7 {[%clk 0:00:29]} 53. Rd3 {[%clk 0:00:02.8]} 53... Rg4+ {[%clk
0:00:28.1]} 54. Kc3 {[%clk 0:00:03]} 54... b5 {[%clk 0:00:23.6]} 55. Kb3 {[%clk
0:00:03.3]} 55... Rc4 {[%clk 0:00:21.5]} 56. Rd2 {[%clk 0:00:01.9]} 56... Rc5
{[%clk 0:00:20.7]} 57. Kb4 {[%clk 0:00:01.5]} 57... Rxd5 {[%clk 0:00:20]} 58.
Rxd5+ {[%clk 0:00:02.4]} 58... Kxd5 {[%clk 0:00:20.3]} 59. Kxb5 {[%clk
0:00:03.3]} 59... Ke5 {[%clk 0:00:20.9]} 60. Kc5 {[%clk 0:00:03.4]} 60... Kf5
{[%clk 0:00:21.4]} 61. Kd5 {[%clk 0:00:03.9]} 61... Kg4 {[%clk 0:00:22]} 62. Ke4
{[%clk 0:00:04.6]} 62... Kxg3 {[%clk 0:00:22.3]} 1/2-1/2